{"text_format":"1","workbook":"xlsx","n_sheets":6,"sheets":["Vivaces","Annuelles","Géranium","Potager","Divers","Commande"],"not_rendered":{"charts":0,"images":284,"macros":1,"external_links":0,"defined_names":12,"comments":0,"pivot_tables":0},"unopened":[],"bounds":{"document_bytes":16777216,"sheet_cells":100000,"rows_first":2000,"rows_last":500,"rows_between":2000,"halvings":0,"cell_chars":16384,"cell_head_chars":4096},"cells_cut":0,"cells_raw":0,"read":"whole","date_system":"1900"}

{"sheet":"Vivaces","index":0,"n_rows":74,"n_cols":6,"rows_kept":74,"cut":false,"hidden":false,"merged":[[7,0,7,3],[0,1,0,7]]}
["E.S.A.T / FOYERS LES GENETS D’OR","E.S.A.T / FOYERS LES GENETS D’OR\nBRIEC DE L’ODET - QUIMPER\n97 bis, Rue du Général De Gaulle – 29 510 Briec de l’Odet\nTel : 02.98.57 91 88"]
["Bon de commande \nA envoyer par mail  :  floriculture.esatbriec@lesgenetsdor.org\nou par téléphone au 02.98.57.91.88 le matin uniquement\nRèglement par chèque ou Carte Bancaire"]
["97 bis, Rue du Général De Gaulle – 29 510 Briec de l’Odet"]
["Tel : 02.98.57.91.88 "]
[]
[]
[]
[]
[]
[]
[null,"Désignation","Prix de Vente TTC","Unité de\nvente","Quantité","Total"]
[]
[null,"Agapanthe Twister",7,"Pot 3L",null,{"$f":"C13*E13","v":0}]
[null,"Aloe Vera (Succulente)",5,"Pot 2L",null,{"$f":"C14*E14","v":0}]
[null,"Arnica Montana",3,"Pot 1L",null,0]
[null,"Astericus Gold Dollar",3,"Pot 1L",null,0]
[null,"Astilbe Arendstii Flamingo",4.5999999999999996,"Pot 2L",null,0]
[null,"Astilbe X Delft Lace",4.5999999999999996,"Pot 2L",null,0]
[null,"Carex Testacea Prairie Fire",3,"Pot 1L",null,0]
[null,"Convolvulus Bleu",3,"Pot 1L",null,0]
[null,"Cordyline cherry sensation (pourpre, rose vif)",13.5,"Pot 2L",null,0]
[null,"Cordyline red star (pourpre marron)",7,"Pot 3L",null,0]
[null,"Dahlia Myctic Enchantement",2.5,"Pot 1L",null,0]
[null,"Dianthus Pink kisses",1.6,"Pot 10,5",null,0]
[null,"Echium Candicans",3.5,"Pot 1L",null,0]
[null,"Eryngium Planum Blue Jackpot",4.5999999999999996,"Pot 2L",null,0]
[null,"Fushia blue Sarah",2.8,"Pot 1L",null,0]
[null,"Geranium Ann Folkard",5.5,"Pot 3L",null,0]
[null,"Haworthia Superfasciata (succulente)",3,"Pot 1L",null,0]
[null,"Hemerocalle Black Stockings",8.5,"Pot 3L",null,0]
[null,"Hemerocalle Dancing on air",7,"Pot 3L",null,0]
[null,"Hemerocalle Spacecoast Behaviour Pattern",5.6,"Pot 3L",null,0]
[null,"Heuchera Caramel",3,"Pot 1L",null,0]
[null,"Heuchera Electra (vert à bronze)",3,"Pot 1L",null,0]
[null,"Heuchera Forever Red (rouge)",3,"Pot 1L",null,0]
[null,"Heuchera Marmelade (rose à marron)",3,"Pot 1L",null,0]
[null,"Heuchera Obsidian (noir)",3,"Pot 1L",null,0]
[null,"Hibiscus des Marais Mocheutos (Couleurs variées)",4.5,"Pot 2L",null,0]
[null,"Hibiscus Moscheutos Planet Griotte Rose",5.5,"Pot 3L",null,0]
[null,"Hosta Bullet proof",7,"Pot 3L",null,0]
[null,"Hosta Dream queen",7,"Pot 3L",null,0]
[null,"Hosta Elegans",7,"Pot 3L",null,0]
[null,"Hosta France Williams",7,"Pot 3L",null,0]
[null,"Hosta Jurassic Park",7,"Pot 3L",null,0]
[null,"Hosta Miracle Lemony (fleurs jaunes)",12,"Pot 3L",null,0]
[null,"Hosta Thunberbolt",7,"Pot 3L",null,0]
[null,"Hosta Wide Brim",7,"Pot 3L",null,0]
[null,"Iris Germ. Rosalie Figge",2.8,"Pot 1L",null,0]
[null,"Iris Germ.Orange Chariot",2.8,"Pot 1L",null,0]
[null,"Iris Pallida Albo Variegata",4.5999999999999996,"Pot 2L",null,0]
[null,"Iris Sibir Golden Edge",2.8,"Pot 1L",null,0]
[null,"Iris Sibir Happy Returns (bleu)",2.8,"Pot 1L",null,0]
[null,"Iris Sibir Kabluey",2.8,"Pot 1L",null,0]
[null,"Iris Sibir Pink Parfait",2.8,"Pot 1L",null,0]
[null,"Jasmin officinal Aureovariegatum (feuillage panaché)",8.5,"Pot 2L",null,0]
[null,"Liatris Spicata Floristan Violet",2.8,"Pot 1L",null,0]
[null,"Liatris Spicata Floristan White",2.8,"Pot 1L",null,0]
[null,"Lilium Asiat. Elodie",11,"Pot 4L",null,0]
[null,"Lilium Asiat. Nightrider",11,"Pot 4L",null,0]
[null,"Lilium Asiat. Orange Electric",11,"Pot 4L",null,0]
[null,"Lilium Martagon Guinea Gold",11,"Pot 4L",null,0]
[null,"Lilium Oriental Trumpt 'Robert Swanson'",11,"Pot 4L",null,0]
[null,"Meconopsis Betonicifolia",5.6,"Pot 3L",null,0]
[null,"Paeonia Hybrid Henry Bockstoce (rouge foncé)",12,"Pot 3L",null,0]
[null,"Paeonia L.DB Kansas",9,"Pot 3L",null,0]
[null,"Paeonia L.DB Pink",9,"Pot 3L",null,0]
[null,"Paeonia L.DB Sarah Bernhardt",9,"Pot 3L",null,0]
[null,"Pyrethe Ptarmica Silver Lace",1.6,"Pot 10,5",null,0]
[null,"Rosier grimpant The Holt",7,"Pot 2L",null,0]
[null,"Sauge Amistadt",3.5,"Pot 2L",null,0]
[null,"Stipa",3,"Pot 1L",null,0]
[null,"Tradescantia Ander Pink Chablis",5,"Pot 2L",null,0]
[null,"Tradescantia Ander Red Grape",5,"Pot 2L",null,0]
[null,"Tulbaghia",4.5999999999999996,"Pot 2L",null,0]

{"sheet":"Annuelles","index":1,"n_rows":132,"n_cols":6,"rows_kept":132,"cut":false,"hidden":false,"merged":[[7,0,7,3],[0,1,0,7]]}
["E.S.A.T / FOYERS LES GENETS D’OR","E.S.A.T / FOYERS LES GENETS D’OR\nBRIEC DE L’ODET - QUIMPER\n97 bis, Rue du Général De Gaulle – 29 510 Briec de l’Odet\nTel : 02.98.57 91 88"]
["Bon de commande \nA envoyer par mail  :  floriculture.esatbriec@lesgenetsdor.org\nou par téléphone au 02.98.57.91.88 le matin uniquement\nRèglement par chèque ou Carte Bancaire"]
["97 bis, Rue du Général De Gaulle – 29 510 Briec de l’Odet"]
["Tel : 02.98.57.91.88 "]
[]
[]
[]
[]
[]
[]
[null,"Désignation","Prix de Vente TTC","Unité de\nvente","Quantité","Total"]
[]
[null,"Aeonium arboreum atropurpureum (rouge)",3.5,"Pot 2L",null,{"$f":"C13*E13","v":0}]
[null,"Alysse clear crysbel (mix rose/blanc)",6.5,"Godet x10",null,{"$f":"C14*E14","v":0}]
[null,"Argyranthemum (rose)",3.5,"Pot 2L",null,0]
[null,"Argyranthemum (rouge)",3.5,"Pot 2L",null,0]
[null,"Bananier maurellii (rouge)",5.6,"Pot 3L",null,0]
[null,"Begonia bellaconia hot orange (double orange)",3.5,"Pot 2L",null,0]
[null,"Begonia ebony and orange",3,"Pot 1L",null,0]
[null,"Begonia hybrida chardonnay (jaune crème)",3.5,"Pot 2L",null,0]
[null,"Begonia new globe mix (mix, feuilles vertes)",6.5,"Godet x10",null,0]
[null,"Begonia new globe rose (rose, feuille rouge)",6.5,"Godet x10",null,0]
[null,"Begonia new globe scarlet (rouge, feuille rouge)",6.5,"Godet x10",null,0]
[null,"Begonia quick red (rouge, feuille verte)",6.5,"Godet x10",null,0]
[null,"Begonia quick rose (rose, feuille verte)",6.5,"Godet x10",null,0]
[null,"Begonia quick white (blanc, feuille verte)",6.5,"Godet x10",null,0]
[null,"Bégonia Semperflorens (double rose)",1.6,"Pot 10,5",null,0]
[null,"Bégonia Semperflorens (double rouge)",1.6,"Pot 10,5",null,0]
[null,"Begonia summerwings dark élegance (rouge, feuilles rouges)",3.5,"Pot 2L",null,0]
[null,"Begonia summerwings white élegance",3,"Pot 1L",null,0]
[null,"Begonia tropical sunset (simple jaune)",3.5,"Pot 2L",null,0]
[null,"Bidens pirates pearl (blanc)",2.5,"Pot 12",null,0]
[null,"Coleus golden dreams ",2.5,"Pot 12",null,0]
[null,"Dahlia Amba (rouge, feuillage foncé)",4.5999999999999996,"Pot 2L",null,0]
[null,"Dahlia Kala (rose, feuillage foncé)",4.5999999999999996,"Pot 2L",null,0]
[null,"Dahlia Yuva (jaune, feuillage foncé)",4.5999999999999996,"Pot 2L",null,0]
[null,"Dalhia happy days bicolore rouge jaune",4.5999999999999996,"Pot 2L",null,0]
[null,"Dianthus Bordeaux",1.6,"Pot 10,5",null,0]
[null,"Dianthus Early love",1.6,"Pot 10,5",null,0]
[null,"Dianthus Purple wedding",1.6,"Pot 10,5",null,0]
[null,"Dianthus Velvet",1.6,"Pot 10,5",null,0]
[null,"Diascia sundiascia rose",2.5,"Pot 12",null,0]
[null,"Gazania new day (mix orangé/marron)",6.5,"Godet x10",null,0]
[null,"Impatiens beacon f1 select (mix rose/blanc …) ",6.5,"Godet x10",null,0]
[null,"Impatiens sun harmony red ou variés",2.5,"Pot 12",null,0]
[null,"Ipomée terrace lime",2.5,"Pot 12",null,0]
[null,"Levisia mix ",6.5,"Godet x10",null,0]
[null,"Lobélia Basket (blanc)",2.5,"Pot 12",null,0]
[null,"Lobélia Basket (bleu)",2.5,"Pot 12",null,0]
[null,"Lobélia Curacao (bleu)",2.5,"Pot 12",null,0]
[null,"Lobelia royal blue",2.5,"Pot 12",null,0]
[null,"Lophospernum ",2.5,"Pot 12",null,0]
[null,"Lotus Bec de perroquet",2.5,"Pot 12",null,0]
[null,"Nemesia honey white parfumé",2.5,"Pot 12",null,0]
[null,"Nemesia pink lemonade ",2.5,"Pot 12",null,0]
[null,"Nemesia sunshine (jaune)",2.5,"Pot 12",null,0]
[null,"Nemesia tropical (orangé)",2.5,"Pot 12",null,0]
[null,"Nemesia vanilla berry ",2.5,"Pot 12",null,0]
[null,"Œillet d'inde bonanza bolero (bicolore)",6.5,"Godet x10",null,0]
[null,"Œillet d'inde bonanza jaune",6.5,"Godet x10",null,0]
[null,"Œillet d'inde bonanza orange",6.5,"Godet x10",null,0]
[null,"Œillet d'inde durango bee (bicolore)",6.5,"Godet x10",null,0]
[null,"Œillet d'inde durango rouge",6.5,"Godet x10",null,0]
[null,"Œillet d'inde mix",6.5,"Godet x10",null,0]
[null,"Osteospernum Flower Power (rose)",2.5,"Pot 12",null,0]
[null,"Osteospernum Flower Power sun (bicolor)",2.5,"Pot 12",null,0]
[null,"Osteospernum voltage jaune",2.5,"Pot 12",null,0]
[null,"Pelargonium (violet)",3.5,"Pot 2L",null,0]
[null,"Petunia Alpetunia Blue (bleu)",3.1,"Pot 2L",null,0]
[null,"Petunia Alpetunia Dark Purple (pourpre)",3.1,"Pot 2L",null,0]
[null,"Petunia Alpetunia Glacier Sky (moucheté bleu)",3.1,"Pot 2L",null,0]
[null,"Petunia Alpetunia Hot Pink(rose)",3.1,"Pot 2L",null,0]
[null,"Petunia Alpetunia Red 14 (rouge)",3.1,"Pot 2L",null,0]
[null,"Petunia Alpetunia White (blanc)",3.1,"Pot 2L",null,0]
[null,"Petunia Bonnie Mystery Sky (compact - moucheté violet)",2.5,"Pot 12",null,0]
[null,"Petunia Bonnie Pink Purple vein (compact - rosé)",2.5,"Pot 12",null,0]
[null,"Petunia Bonnie Purple Star (compact - bicolore mauve/blanc)",2.5,"Pot 12",null,0]
[null,"Petunia Bonnie Velvet",2.5,"Pot 12",null,{"$f":"C78*E78","v":0}]
[null,"Petunia Calibrachoa cabaret tropicana",2.5,"Pot 12",null,0]
[null,"Petunia Calibrachoa minifamous Double white (double blanc)",2.5,"Pot 12",null,0]
[null,"Petunia Calibrachoa minifamous Neo double jaune (double jaune)",2.5,"Pot 12",null,0]
[null,"Petunia Calibrachoa minifamous Neo firestoms (rouge)",2.5,"Pot 12",null,0]
[null,"Petunia Calibrachoa minifamous Neo hot pink (rose foncé)",2.5,"Pot 12",null,0]
[null,"Petunia Calibrachoa minifamous Neo orange + Red eye (orange à oeil)",2.5,"Pot 12",null,0]
[null,"Petunia Calibrachoa minifamous Rave cherry (bicolore rouge)",2.5,"Pot 12",null,0]
[null,"Petunia Calibrachoa minifamous Rave pink (bicolore rose)",2.5,"Pot 12",null,0]
[null,"Petunia Calibrachoa minifamous Rave violet (bicolore violet)",2.5,"Pot 12",null,0]
[null,"Petunia Calibrachoa minifamous Uno double pink tastic (double rose)",2.5,"Pot 12",null,0]
[null,"Petunia Calibrachoa minifamous Uno pink (rose)",2.5,"Pot 12",null,0]
[null,"Petunia Calibrachoa minifamous Uno white(blanc)",2.5,"Pot 12",null,0]
[null,"Petunia Calibrachoa Trixi (mélange de 3 plants)",3.5,"Pot 2L",null,0]
[null,"Petunia Calibrachoa Trixi Cherry Kiss",3.5,"Pot 2L",null,0]
[null,"Petunia Calibrachoa Trixi Blueberry parfait",3.5,"Pot 2L",null,0]
[null,"Petunia Calibrachoa Trixi Pastel",3.5,"Pot 2L",null,0]
[null,"Petunia Calibrachoa Trixi Portulaca Sinbad",3.5,"Pot 2L",null,0]
[null,"Petunia Calibrachoa Trixi Spirit",3.5,"Pot 2L",null,0]
[null,"Petunia crazutania cosmic purple",3.1,"Pot 2L",null,0]
[null,"Petunia crazutania mandevilla",3.1,"Pot 2L",null,0]
[null,"Petunia Famous pink (rose)",3.1,"Pot 2L",null,0]
[null,"Petunia Famous Sky Blue (bleu)",3.1,"Pot 2L",null,0]
[null,"Petunia Famous Swirl Raspberry (bicolore)",3.1,"Pot 2L",null,0]
[null,"Petunia gran pacta parade (mix)",6.5,"Godet x10",null,0]
[null,"Petunia parade plus mix",6.5,"Godet x10",null,0]
[null,"Pétunia Retombant  Lighting sky (moucheté violet)",3.5,"Pot 2L",null,0]
[null,"Pétunia Retombant Amore Queenof Heart (bicolore rose/jaune)",3.1,"Pot 2L",null,0]
[null,"Pétunia Retombant Baby Doll (moucheté rose)",3.5,"Pot 2L",null,0]
[null,"Pétunia Retombant Night Sky (moucheté bleu)",3.5,"Pot 2L",null,0]
[null,"Petunia Sweetsunshine Burgundy (double pourpre)",3.1,"Pot 2L",null,0]
[null,"Petunia Sweetsunshine Magenta picotee (double bicolore rose/blanc)",3.1,"Pot 2L",null,0]
[null,"Petunia Sweetsunshine Pink (double rose)",3.1,"Pot 2L",null,0]
[null,"Pourpier happy hour f1 mix",6.5,"Godet x10",null,0]
[null,"Pourpier purple cross (rose et jaune)",1.6,"Pot 10,5",null,0]
[null,"Sauge Embers wish corail",3.1,"Pot 2L",null,0]
[null,"Scaevola deep violet blue ",2.5,"Pot 12",null,0]
[null,"Scaevola Saligna (bleu)",2.5,"Pot 12",null,0]
[null,"Sutera (blanc)",1.6,"Pot 10,5",null,0]
[null,"Sutera (rose)",1.6,"Pot 10,5",null,0]
[null,"Sutera Grandiflora (blanc)",1.6,"Pot 10,5",null,0]
[null,"Sutera Grandiflora Scopia (double blanc)",1.6,"Pot 10,5",null,0]
[null,"Thumbergia rose sensation (rose)",2.5,"Pot 12",null,0]
[null,"Thunbergia (Oeil de Suzanne) jaune",2.5,"Pot 12",null,0]
[null,"Thunbergia (Oeil de Suzanne) orange",2.5,"Pot 12",null,0]
[null,"Verveine (blanc)",2.5,"Pot 12",null,0]
[null,"Verveine (magenta)",2.5,"Pot 12",null,0]
[null,"Verveine (orange)",2.5,"Pot 12",null,0]
[null,"Verveine (rouge)",2.5,"Pot 12",null,0]
[null,"Verveine (violet)",2.5,"Pot 12",null,0]
[null,"Verveine endurascape pink bicolore",1.6,"Pot 10,5",null,0]
[null,"Verveine hurricane purple blue",2.5,"Pot 12",null,0]
[null,"Verveine merlot star (pourpre)",2.5,"Pot 12",null,0]
[null,"Verveine peach (pêche)",2.5,"Pot 12",null,0]
[null,"Verveine voodoo star (rouge et blanc)",2.5,"Pot 12",null,0]

{"sheet":"Géranium","index":2,"n_rows":69,"n_cols":6,"rows_kept":69,"cut":false,"hidden":false,"merged":[[7,0,7,3],[0,1,0,7]]}
["E.S.A.T / FOYERS LES GENETS D’OR","E.S.A.T / FOYERS LES GENETS D’OR\nBRIEC DE L’ODET - QUIMPER\n97 bis, Rue du Général De Gaulle – 29 510 Briec de l’Odet\nTel : 02.98.57 91 88"]
["Bon de commande \nA envoyer par mail  :  floriculture.esatbriec@lesgenetsdor.org\nou par téléphone au 02.98.57.91.88 le matin uniquement\nRèglement par chèque ou Carte Bancaire"]
["97 bis, Rue du Général De Gaulle – 29 510 Briec de l’Odet"]
["Tel : 02.98.57.91.88 "]
[]
[]
[]
[]
[]
[]
[null,"Désignation","Prix de Vente TTC","Unité de\nvente","Quantité","Total"]
[]
[null,"Géranium Balcon Desrumeaux rose",11,"Godet x10",null,{"$f":"C13*E13","v":0}]
[null,"Géranium Balcon impérial rouge",11,"Godet x10",null,{"$f":"C14*E14","v":0}]
[null,"Géranium Balcon rouge",11,"Godet x10",null,0]
[null,"Géranium Balcon ville de Dresden",11,"Godet x10",null,0]
[null,"Géranium Balcon Ville de Laval rose",11,"Godet x10",null,0]
[null,"Géranium Lierre double Blanche roche MD blanc",1.6,"Pot 10,5",null,0]
[null,"Géranium Lierre double Doblino MD framboise",1.6,"Pot 10,5",null,0]
[null,"Géranium Lierre double Doblino MD rose foncé",1.6,"Pot 10,5",null,0]
[null,"Géranium Lierre double Doblino MD rouge",1.6,"Pot 10,5",null,0]
[null,"Géranium Lierre double Doblino MD rouge foncé",1.6,"Pot 10,5",null,0]
[null,"Géranium Lierre double Kate rouge",1.6,"Pot 10,5",null,0]
[null,"Géranium Lierre double Lilac",1.6,"Pot 10,5",null,0]
[null,"Géranium Lierre double Mexicanerin rose blanc",1.6,"Pot 10,5",null,0]
[null,"Géranium Lierre double Ruby rouge",1.6,"Pot 10,5",null,0]
[null,"Géranium Lierre double Vicky rose",1.6,"Pot 10,5",null,0]
[null,"Géranium Lierre simple happy face blanc",1.6,"Pot 10,5",null,0]
[null,"Géranium Lierre simple happy face dark red",1.6,"Pot 10,5",null,0]
[null,"Géranium Lierre simple happy face magenta",1.6,"Pot 10,5",null,0]
[null,"Géranium Lierre simple happy face purple",1.6,"Pot 10,5",null,0]
[null,"Géranium Lierre simple happy face red",1.6,"Pot 10,5",null,0]
[null,"Géranium Lierre simple pellino MD rose foncé",1.6,"Pot 10,5",null,0]
[null,"Géranium Lierre simple pellino MD rouge",1.6,"Pot 10,5",null,0]
[null,"Géranium Zonal Alice violet",1.6,"Pot 10,5",null,0]
[null,"Géranium Zonal Cassiopea rouge carmin",1.6,"Pot 10,5",null,0]
[null,"Géranium Zonal Chocolate abricot",1.6,"Pot 10,5",null,0]
[null,"Géranium Zonal Chocolate cherry red corail",1.6,"Pot 10,5",null,0]
[null,"Géranium Zonal Chocolate pink",1.6,"Pot 10,5",null,0]
[null,"Géranium Zonal Dazzling pink rose",1.6,"Pot 10,5",null,0]
[null,"Géranium Zonal Dijon rouge",1.6,"Pot 10,5",null,0]
[null,"Géranium Zonal Distinction rouge",1.6,"Pot 10,5",null,0]
[null,"Géranium Zonal Flower fairy berry violet",1.6,"Pot 10,5",null,0]
[null,"Géranium Zonal Flower fairy rose",1.6,"Pot 10,5",null,0]
[null,"Géranium Zonal Glacis blanc",1.6,"Pot 10,5",null,0]
[null,"Géranium Zonal Laval fuchia",1.6,"Pot 10,5",null,0]
[null,"Géranium Zonal Libourne rouge",1.6,"Pot 10,5",null,0]
[null,"Géranium Zonal Madame Salleron",1.6,"Pot 10,5",null,0]
[null,"Géranium Zonal Morzine blanc",1.6,"Pot 10,5",null,0]
[null,"Géranium Zonal Mosaïc pink rose",1.6,"Pot 10,5",null,0]
[null,"Géranium Zonal Mosaïc red rouge",1.6,"Pot 10,5",null,0]
[null,"Géranium Zonal Moulins tecmoulins rose",1.6,"Pot 10,5",null,0]
[null,"Géranium Zonal Mrs Pollock",1.6,"Pot 10,5",null,0]
[null,"Géranium Zonal Occold Shield rouge",1.6,"Pot 10,5",null,0]
[null,"Géranium Zonal Odorant (rose ou orange)",2.5,"Pot 12",null,0]
[null,"Géranium Zonal Orange",1.6,"Pot 10,5",null,0]
[null,"Géranium Zonal Samelia rouge",1.6,"Pot 10,5",null,0]
[null,"Géranium Zonal Spanish wine burgundy (framboise)",1.6,"Pot 10,5",null,0]
[null,"Géranium Zonal Spanish wine rosé",1.6,"Pot 10,5",null,0]
[null,"Géranium Zonal Steffanie orange",1.6,"Pot 10,5",null,0]
[null,"Géranium Zonal Vancouver centennial orange",1.6,"Pot 10,5",null,0]
[null,"Géranium Zonal Victor rouge",1.6,"Pot 10,5",null,0]
[null,"Géranium Zonal Wilhelm Langguth",1.6,"Pot 10,5",null,0]
[null,"Pelargonium Angeleyes orange",2.5,"Pot 12",null,0]
[null,"Pelargonium Angeleyes violet",2.5,"Pot 12",null,0]
[null,"Pelargonium Candyflowers violet",3.5,"Pot 2L",null,0]
[null,"Pelargonium Marcada dark red",1.6,"Pot 10,5",null,0]
[null,"Pelargonium Marcada pink",1.6,"Pot 10,5",null,0]
[null,"Pelargonium Marcada white",1.6,"Pot 10,5",null,0]

{"sheet":"Potager","index":3,"n_rows":42,"n_cols":6,"rows_kept":42,"cut":false,"hidden":false,"merged":[[7,0,7,3],[0,1,0,7]]}
["E.S.A.T / FOYERS LES GENETS D’OR","E.S.A.T / FOYERS LES GENETS D’OR\nBRIEC DE L’ODET - QUIMPER\n97 bis, Rue du Général De Gaulle – 29 510 Briec de l’Odet\nTel : 02.98.57 91 88"]
["Bon de commande \nA envoyer par mail  :  floriculture.esatbriec@lesgenetsdor.org\nou par téléphone au 02.98.57.91.88 le matin uniquement\nRèglement par chèque ou Carte Bancaire"]
["97 bis, Rue du Général De Gaulle – 29 510 Briec de l’Odet"]
["Tel : 02.98.57.91.88 "]
[]
[]
[]
[]
[]
[]
[null,"Désignation","Prix de Vente TTC","Unité de\nvente","Quantité","Total"]
[]
[null,"Basilic bio",3,"Pot 1L",null,{"$f":"C13*E13","v":0}]
[null,"Ciboulette bio ",3,"Pot 1L",null,{"$f":"C14*E14","v":0}]
[null,"Citronelle de Madacascar ",3.5,"Pot 2L",null,0]
[null,"Fraisier Charlotte (remontant)",4.5,"x6",null,0]
[null,"Fraisier Ciflorette (remontant)",4.5,"x6",null,0]
[null,"Fraisier Cirafine (remontant)",4.5,"x6",null,0]
[null,"Fraisier Gariguette (non remontant)",4.5,"x6",null,0]
[null,"Fraisier Gento (remontant)",4.5,"x6",null,0]
[null,"Menthe Mojito-cocktail bio",3,"Pot 1L",null,0]
[null,"Mertensia maritima ( saveur huitre)",3,"Pot 1L",null,0]
[null,"Patate Douce",4.5999999999999996,"Pot 2L",null,0]
[null,"Persil Géant d'Italie",3,"Pot 1L",null,0]
[null,"Piment",1.2,"Godet",null,0]
[null,"Tomate Ace 55",1.6,"Fertil pot",null,0]
[null,"Tomate Bio Anciennes Calabash Rouge",1.6,"Fertil pot",null,0]
[null,"Tomate Bio Anciennes Précoce de Quimper",1.6,"Fertil pot",null,0]
[null,"Tomate Bio Anciennes Reine des Hâtives",1.6,"Fertil pot",null,0]
[null,"Tomate Bio Anciennes Voyage",1.6,"Fertil pot",null,0]
[null,"Tomate Black From Tula",1.6,"Fertil pot",null,0]
[null,"Tomate Borgo",1.6,"Fertil pot",null,0]
[null,"Tomate Cerise Bio Cocktail Cookie",1.6,"Fertil pot",null,0]
[null,"Tomate Cerise Bio Gusta mini Red",1.2,"Godet",null,0]
[null,"Tomate cerise clémentine",1.6,"Fertil pot",null,0]
[null,"Tomate Grappe Bio Bolstar Ganda",1.6,"Fertil pot",null,0]
[null,"Tomate Grappe Bio Maestria F1",1,"Fertil pot",null,0]
[null,"Tomate Grappe Bio Prévia F1",1.2,"Fertil pot",null,0]
[null,"Tomate Green Zebra ",1.6,"Fertil pot",null,0]
[null,"Tomate muguet",1.6,"Fertil pot",null,0]
[null,"Tomate noire russe charbonneuse",1.6,"Fertil pot",null,0]
[null,"Tomate Roma ",1.6,"Fertil pot",null,0]

{"sheet":"Divers","index":4,"n_rows":20,"n_cols":6,"rows_kept":20,"cut":false,"hidden":false,"merged":[[7,0,7,3],[0,1,0,7]]}
["E.S.A.T / FOYERS LES GENETS D’OR","E.S.A.T / FOYERS LES GENETS D’OR\nBRIEC DE L’ODET - QUIMPER\n97 bis, Rue du Général De Gaulle – 29 510 Briec de l’Odet\nTel : 02.98.57 91 88"]
["Bon de commande \nA envoyer par mail  :  floriculture.esatbriec@lesgenetsdor.org\nou par téléphone au 02.98.57.91.88 le matin uniquement\nRèglement par chèque ou Carte Bancaire"]
["97 bis, Rue du Général De Gaulle – 29 510 Briec de l’Odet"]
["Tel : 02.98.57.91.88 "]
[]
[]
[]
[]
[]
[]
[null,"Désignation","Prix de Vente TTC","Unité de\nvente","Quantité","Total"]
[]
[null,"Contenant suspension diam 27cm Figue",3.5,"x1",null,{"$f":"C13*E13","v":0}]
[null,"Contenant suspension diam 27cm Gris",3.5,"x1",null,{"$f":"C14*E14","v":0}]
[null,"Contenant suspension diam 27cm Rouge",3.5,"x1",null,0]
[null,"Contenant suspension diam 27cm Vert",3.5,"x1",null,0]
[null,"Engrais \"Pro Bio Terre\" 1kg",8.9,"x1",null,0]
[null,"Jardinière avec soucoupe L50cm Gris",6.5,"x1",null,0]
[null,"Jardinière avec soucoupe L50cm Taupe",6.5,"x1",null,0]
[null,"Suspension fleurie Diam 27cm",14.5,"x1",null,0]

{"sheet":"Commande","index":5,"n_rows":302,"n_cols":5,"rows_kept":302,"cut":false,"hidden":false,"merged":[[292,0,292,3],[301,0,301,2],[0,1,0,3],[14,0,14,3],[78,0,78,3],[201,0,201,3],[259,0,259,3],[1,0,1,3],[2,1,2,3],[4,1,4,3],[3,1,3,3],[6,1,6,3],[8,1,8,3],[9,1,9,3],[10,1,10,3]]}
[null,"E.S.A.T / FOYERS LES GENETS D’OR\nBRIEC DE L’ODET - QUIMPER\n97 bis, Rue du Général De Gaulle – 29 510 Briec de l’Odet\nTel : 02.98.57 91 88"]
["Bon de commande \nA envoyer par mail  :  floriculture.esatbriec@lesgenetsdor.org\nou par téléphone au 02.98.57.91.88 le matin uniquement\nRèglement par chèque ou Carte Bancaire"]
["Nom, Prénom & Commune :"]
[]
[]
[]
["N° de téléphone pour être prévenu quand ma commande est prête"]
[]
["Jours et créneaux horaires souhaités pour le retrait de ma commande"]
["Merci d'indiquer si possible, plusieurs créneaux"]
[]
[]
["Désignation","Prix de Vente TTC","Quantité","Total"]
[]
["Vivaces",null,null,null,1]
["Agapanthe Twister",7,{"$f":"Vivaces!E13","v":0},{"$f":"B16*C16","v":0},{"$f":"IF(C16=0,\"\",1)","v":""}]
["Aloe Vera (Succulente)",5,{"$f":"Vivaces!E14","v":0},{"$f":"B17*C17","v":0},{"$f":"IF(C17=0,\"\",1)","v":""}]
["Arnica Montana",3,{"$f":"Vivaces!E15","v":0},0,""]
["Astericus Gold Dollar",3,{"$f":"Vivaces!E16","v":0},0,""]
["Astilbe Arendstii Flamingo",4.5999999999999996,{"$f":"Vivaces!E17","v":0},0,""]
["Astilbe X Delft Lace",4.5999999999999996,{"$f":"Vivaces!E18","v":0},0,""]
["Carex Testacea Prairie Fire",3,{"$f":"Vivaces!E19","v":0},0,""]
["Convolvulus Bleu",3,{"$f":"Vivaces!E20","v":0},0,""]
["Cordyline cherry sensation (pourpre, rose vif)",13.5,{"$f":"Vivaces!E21","v":0},0,""]
["Cordyline red star (pourpre marron)",7,{"$f":"Vivaces!E22","v":0},0,""]
["Dahlia Myctic Enchantement",2.5,{"$f":"Vivaces!E23","v":0},0,""]
["Dianthus Pink kisses",1.6,{"$f":"Vivaces!E24","v":0},0,""]
["Echium Candicans",3.5,{"$f":"Vivaces!E25","v":0},0,""]
["Eryngium Planum Blue Jackpot",4.5999999999999996,{"$f":"Vivaces!E26","v":0},0,""]
["Fushia blue Sarah",2.8,{"$f":"Vivaces!E27","v":0},0,""]
["Geranium Ann Folkard",5.5,{"$f":"Vivaces!E28","v":0},0,""]
["Haworthia Superfasciata (succulente)",3,{"$f":"Vivaces!E29","v":0},0,""]
["Hemerocalle Black Stockings",8.5,{"$f":"Vivaces!E30","v":0},0,""]
["Hemerocalle Dancing on air",7,{"$f":"Vivaces!E31","v":0},0,""]
["Hemerocalle Spacecoast Behaviour Pattern",5.6,{"$f":"Vivaces!E32","v":0},0,""]
["Heuchera Caramel",3,{"$f":"Vivaces!E33","v":0},0,""]
["Heuchera Electra (vert à bronze)",3,{"$f":"Vivaces!E34","v":0},0,""]
["Heuchera Forever Red (rouge)",3,{"$f":"Vivaces!E35","v":0},0,""]
["Heuchera Marmelade (rose à marron)",3,{"$f":"Vivaces!E36","v":0},0,""]
["Heuchera Obsidian (noir)",3,{"$f":"Vivaces!E37","v":0},0,""]
["Hibiscus des Marais Mocheutos (Couleurs variées)",4.5,{"$f":"Vivaces!E38","v":0},0,""]
["Hibiscus Moscheutos Planet Griotte Rose",5.5,{"$f":"Vivaces!E39","v":0},0]
["Hosta Bullet proof",7,{"$f":"Vivaces!E40","v":0},0,""]
["Hosta Dream queen",7,{"$f":"Vivaces!E41","v":0},0,""]
["Hosta Elegans",7,{"$f":"Vivaces!E42","v":0},0,""]
["Hosta France Williams",7,{"$f":"Vivaces!E43","v":0},0,""]
["Hosta Jurassic Park",7,{"$f":"Vivaces!E44","v":0},0,""]
["Hosta Miracle Lemony (fleurs jaunes)",12,{"$f":"Vivaces!E45","v":0},0,""]
["Hosta Thunberbolt",7,{"$f":"Vivaces!E46","v":0},0,""]
["Hosta Wide Brim",7,{"$f":"Vivaces!E47","v":0},0,""]
["Iris Germ. Rosalie Figge",2.8,{"$f":"Vivaces!E48","v":0},0,""]
["Iris Germ.Orange Chariot",2.8,{"$f":"Vivaces!E49","v":0},0,""]
["Iris Pallida Albo Variegata",4.5999999999999996,{"$f":"Vivaces!E50","v":0},0,""]
["Iris Sibir Golden Edge",2.8,{"$f":"Vivaces!E51","v":0},0,""]
["Iris Sibir Happy Returns (bleu)",2.8,{"$f":"Vivaces!E52","v":0},0,""]
["Iris Sibir Kabluey",2.8,{"$f":"Vivaces!E53","v":0},0,""]
["Iris Sibir Pink Parfait",2.8,{"$f":"Vivaces!E54","v":0},0,""]
["Jasmin officinal Aureovariegatum (feuillage panaché)",8.5,{"$f":"Vivaces!E55","v":0},0,""]
["Liatris Spicata Floristan Violet",2.8,{"$f":"Vivaces!E56","v":0},0,""]
["Liatris Spicata Floristan White",2.8,{"$f":"Vivaces!E57","v":0},0,""]
["Lilium Asiat. Elodie",11,{"$f":"Vivaces!E58","v":0},0,""]
["Lilium Asiat. Nightrider",11,{"$f":"Vivaces!E59","v":0},0,""]
["Lilium Asiat. Orange Electric",11,{"$f":"Vivaces!E60","v":0},0,""]
["Lilium Martagon Guinea Gold",11,{"$f":"Vivaces!E61","v":0},0,""]
["Lilium Oriental Trumpt 'Robert Swanson'",11,{"$f":"Vivaces!E62","v":0},0,""]
["Meconopsis Betonicifolia",5.6,{"$f":"Vivaces!E63","v":0},0,""]
["Paeonia Hybrid Henry Bockstoce (rouge foncé)",12,{"$f":"Vivaces!E64","v":0},0,""]
["Paeonia L.DB Kansas",9,{"$f":"Vivaces!E65","v":0},0,""]
["Paeonia L.DB Pink",9,{"$f":"Vivaces!E66","v":0},0,""]
["Paeonia L.DB Sarah Bernhardt",9,{"$f":"Vivaces!E67","v":0},0,""]
["Pyrethe Ptarmica Silver Lace",1.6,{"$f":"Vivaces!E68","v":0},0,""]
["Rosier grimpant The Holt",7,{"$f":"Vivaces!E69","v":0},0]
["Sauge Amistadt",3.5,{"$f":"Vivaces!E70","v":0},0,""]
["Stipa",3,{"$f":"Vivaces!E71","v":0},0,""]
["Tradescantia Ander Pink Chablis",5,{"$f":"Vivaces!E72","v":0},0,""]
["Tradescantia Ander Red Grape",5,{"$f":"Vivaces!E73","v":0},0]
["Tulbaghia",4.5999999999999996,{"$f":"Vivaces!E74","v":0},0]
[null,null,null,null,""]
["Annuelles",null,null,null,1]
["Aeonium arboreum atropurpureum (rouge)",3.5,{"$f":"Annuelles!E13","v":0},{"$f":"B80*C80","v":0},""]
["Alysse clear crysbel (mix rose/blanc)",6.5,{"$f":"Annuelles!E14","v":0},{"$f":"B81*C81","v":0},""]
["Argyranthemum (rose)",3.5,{"$f":"Annuelles!E15","v":0},0,""]
["Argyranthemum (rouge)",3.5,{"$f":"Annuelles!E16","v":0},0,""]
["Bananier maurellii (rouge)",5.6,{"$f":"Annuelles!E17","v":0},0,""]
["Begonia bellaconia hot orange (double orange)",3.5,{"$f":"Annuelles!E18","v":0},0,{"$f":"IF(C85=0,\"\",1)","v":""}]
["Begonia ebony and orange",3,{"$f":"Annuelles!E19","v":0},0,""]
["Begonia hybrida chardonnay (jaune crème)",3.5,{"$f":"Annuelles!E20","v":0},0,""]
["Begonia new globe mix (mix, feuilles vertes)",6.5,{"$f":"Annuelles!E21","v":0},0,""]
["Begonia new globe rose (rose, feuille rouge)",6.5,{"$f":"Annuelles!E22","v":0},0,""]
["Begonia new globe scarlet (rouge, feuille rouge)",6.5,{"$f":"Annuelles!E23","v":0},0,""]
["Begonia quick red (rouge, feuille verte)",6.5,{"$f":"Annuelles!E24","v":0},0,""]
["Begonia quick rose (rose, feuille verte)",6.5,{"$f":"Annuelles!E25","v":0},0,""]
["Begonia quick white (blanc, feuille verte)",6.5,{"$f":"Annuelles!E26","v":0},0,""]
["Bégonia Semperflorens (double rose)",1.6,{"$f":"Annuelles!E27","v":0},0,""]
["Bégonia Semperflorens (double rouge)",1.6,{"$f":"Annuelles!E28","v":0},0,""]
["Begonia summerwings dark élegance (rouge, feuilles rouges)",3.5,{"$f":"Annuelles!E29","v":0},0,""]
["Begonia summerwings white élegance",3,{"$f":"Annuelles!E30","v":0},0,""]
["Begonia tropical sunset (simple jaune)",3.5,{"$f":"Annuelles!E31","v":0},0,""]
["Bidens pirates pearl (blanc)",2.5,{"$f":"Annuelles!E32","v":0},0,""]
["Coleus golden dreams ",2.5,{"$f":"Annuelles!E33","v":0},0,""]
["Dahlia Amba (rouge, feuillage foncé)",4.5999999999999996,{"$f":"Annuelles!E34","v":0},0,""]
["Dahlia Kala (rose, feuillage foncé)",4.5999999999999996,{"$f":"Annuelles!E35","v":0},0,""]
["Dahlia Yuva (jaune, feuillage foncé)",4.5999999999999996,{"$f":"Annuelles!E36","v":0},0,""]
["Dalhia happy days bicolore rouge jaune",4.5999999999999996,{"$f":"Annuelles!E37","v":0},0,""]
["Dianthus Bordeaux",1.6,{"$f":"Annuelles!E38","v":0},0,""]
["Dianthus Early love",1.6,{"$f":"Annuelles!E39","v":0},0,""]
["Dianthus Purple wedding",1.6,{"$f":"Annuelles!E40","v":0},0,""]
["Dianthus Velvet",1.6,{"$f":"Annuelles!E41","v":0},0,""]
["Diascia sundiascia rose",2.5,{"$f":"Annuelles!E42","v":0},0,""]
["Gazania new day (mix orangé/marron)",6.5,{"$f":"Annuelles!E43","v":0},0,""]
["Impatiens beacon f1 select (mix rose/blanc …) ",6.5,{"$f":"Annuelles!E44","v":0},0,""]
["Impatiens sun harmony red ou variés",2.5,{"$f":"Annuelles!E45","v":0},0,""]
["Ipomée terrace lime",2.5,{"$f":"Annuelles!E46","v":0},0,""]
["Levisia mix ",6.5,{"$f":"Annuelles!E47","v":0},0,""]
["Lobélia Basket (blanc)",2.5,{"$f":"Annuelles!E48","v":0},0,""]
["Lobélia Basket (bleu)",2.5,{"$f":"Annuelles!E49","v":0},0,""]
["Lobélia Curacao (bleu)",2.5,{"$f":"Annuelles!E50","v":0},0,""]
["Lobelia royal blue",2.5,{"$f":"Annuelles!E51","v":0},0,""]
["Lophospernum ",2.5,{"$f":"Annuelles!E52","v":0},0,""]
["Lotus Bec de perroquet",2.5,{"$f":"Annuelles!E53","v":0},0,""]
["Nemesia honey white parfumé",2.5,{"$f":"Annuelles!E54","v":0},0,""]
["Nemesia pink lemonade ",2.5,{"$f":"Annuelles!E55","v":0},0,""]
["Nemesia sunshine (jaune)",2.5,{"$f":"Annuelles!E56","v":0},0,""]
["Nemesia tropical (orangé)",2.5,{"$f":"Annuelles!E57","v":0},0,""]
["Nemesia vanilla berry ",2.5,{"$f":"Annuelles!E58","v":0},0,""]
["Œillet d'inde bonanza bolero (bicolore)",6.5,{"$f":"Annuelles!E59","v":0},0,""]
["Œillet d'inde bonanza jaune",6.5,{"$f":"Annuelles!E60","v":0},0,""]
["Œillet d'inde bonanza orange",6.5,{"$f":"Annuelles!E61","v":0},0,""]
["Œillet d'inde durango bee (bicolore)",6.5,{"$f":"Annuelles!E62","v":0},0,""]
["Œillet d'inde durango rouge",6.5,{"$f":"Annuelles!E63","v":0},0,""]
["Œillet d'inde mix",6.5,{"$f":"Annuelles!E64","v":0},0,""]
["Osteospernum Flower Power (rose)",2.5,{"$f":"Annuelles!E65","v":0},0,""]
["Osteospernum Flower Power sun (bicolor)",2.5,{"$f":"Annuelles!E66","v":0},0,""]
["Osteospernum voltage jaune",2.5,{"$f":"Annuelles!E67","v":0},0,""]
["Pelargonium (violet)",3.5,{"$f":"Annuelles!E68","v":0},0,""]
["Petunia Alpetunia Blue (bleu)",3.1,{"$f":"Annuelles!E69","v":0},0,""]
["Petunia Alpetunia Dark Purple (pourpre)",3.1,{"$f":"Annuelles!E70","v":0},0,""]
["Petunia Alpetunia Glacier Sky (moucheté bleu)",3.1,{"$f":"Annuelles!E71","v":0},0,""]
["Petunia Alpetunia Hot Pink(rose)",3.1,{"$f":"Annuelles!E72","v":0},0,""]
["Petunia Alpetunia Red 14 (rouge)",3.1,{"$f":"Annuelles!E73","v":0},0,""]
["Petunia Alpetunia White (blanc)",3.1,{"$f":"Annuelles!E74","v":0},0,""]
["Petunia Bonnie Mystery Sky (compact - moucheté violet)",2.5,{"$f":"Annuelles!E75","v":0},0,""]
["Petunia Bonnie Pink Purple vein (compact - rosé)",2.5,{"$f":"Annuelles!E76","v":0},0,""]
["Petunia Bonnie Purple Star (compact - bicolore mauve/blanc)",2.5,{"$f":"Annuelles!E77","v":0},0,""]
["Petunia Bonnie Velvet",2.5,{"$f":"Annuelles!E78","v":0},{"$f":"B145*C145","v":0},""]
["Petunia Calibrachoa cabaret tropicana",2.5,{"$f":"Annuelles!E79","v":0},0,""]
["Petunia Calibrachoa minifamous Double white (double blanc)",2.5,{"$f":"Annuelles!E80","v":0},0,""]
["Petunia Calibrachoa minifamous Neo double jaune (double jaune)",2.5,{"$f":"Annuelles!E81","v":0},0,""]
["Petunia Calibrachoa minifamous Neo firestoms (rouge)",2.5,{"$f":"Annuelles!E82","v":0},0,{"$f":"IF(C149=0,\"\",1)","v":""}]
["Petunia Calibrachoa minifamous Neo hot pink (rose foncé)",2.5,{"$f":"Annuelles!E83","v":0},0,""]
["Petunia Calibrachoa minifamous Neo orange + Red eye (orange à oeil)",2.5,{"$f":"Annuelles!E84","v":0},0,""]
["Petunia Calibrachoa minifamous Rave cherry (bicolore rouge)",2.5,{"$f":"Annuelles!E85","v":0},0,""]
["Petunia Calibrachoa minifamous Rave pink (bicolore rose)",2.5,{"$f":"Annuelles!E86","v":0},0,""]
["Petunia Calibrachoa minifamous Rave violet (bicolore violet)",2.5,{"$f":"Annuelles!E87","v":0},0,""]
["Petunia Calibrachoa minifamous Uno double pink tastic (double rose)",2.5,{"$f":"Annuelles!E88","v":0},0,""]
["Petunia Calibrachoa minifamous Uno pink (rose)",2.5,{"$f":"Annuelles!E89","v":0},0,""]
["Petunia Calibrachoa minifamous Uno white(blanc)",2.5,{"$f":"Annuelles!E90","v":0},0,""]
["Petunia Calibrachoa Trixi (mélange de 3 plants)",3.5,{"$f":"Annuelles!E91","v":0},0,""]
["Petunia Calibrachoa Trixi Cherry Kiss",3.5,{"$f":"Annuelles!E92","v":0},0,""]
["Petunia Calibrachoa Trixi Blueberry parfait",3.5,{"$f":"Annuelles!E93","v":0},0,""]
["Petunia Calibrachoa Trixi Pastel",3.5,{"$f":"Annuelles!E94","v":0},0,""]
["Petunia Calibrachoa Trixi Portulaca Sinbad",3.5,{"$f":"Annuelles!E95","v":0},0,""]
["Petunia Calibrachoa Trixi Spirit",3.5,{"$f":"Annuelles!E96","v":0},0,""]
["Petunia crazutania cosmic purple",3.1,{"$f":"Annuelles!E97","v":0},0,""]
["Petunia crazutania mandevilla",3.1,{"$f":"Annuelles!E98","v":0},0,""]
["Petunia Famous pink (rose)",3.1,{"$f":"Annuelles!E99","v":0},0,""]
["Petunia Famous Sky Blue (bleu)",3.1,{"$f":"Annuelles!E100","v":0},0,""]
["Petunia Famous Swirl Raspberry (bicolore)",3.1,{"$f":"Annuelles!E101","v":0},0,""]
["Petunia gran pacta parade (mix)",6.5,{"$f":"Annuelles!E102","v":0},0,""]
["Petunia parade plus mix",6.5,{"$f":"Annuelles!E103","v":0},0,""]
["Pétunia Retombant  Lighting sky (moucheté violet)",3.5,{"$f":"Annuelles!E104","v":0},0,""]
["Pétunia Retombant Amore Queenof Heart (bicolore rose/jaune)",3.1,{"$f":"Annuelles!E105","v":0},0,""]
["Pétunia Retombant Baby Doll (moucheté rose)",3.5,{"$f":"Annuelles!E106","v":0},0,""]
["Pétunia Retombant Night Sky (moucheté bleu)",3.5,{"$f":"Annuelles!E107","v":0},0,""]
["Petunia Sweetsunshine Burgundy (double pourpre)",3.1,{"$f":"Annuelles!E108","v":0},0,""]
["Petunia Sweetsunshine Magenta picotee (double bicolore rose/blanc)",3.1,{"$f":"Annuelles!E109","v":0},0,""]
["Petunia Sweetsunshine Pink (double rose)",3.1,{"$f":"Annuelles!E110","v":0},0,""]
["Pourpier happy hour f1 mix",6.5,{"$f":"Annuelles!E111","v":0},0,""]
["Pourpier purple cross (rose et jaune)",1.6,{"$f":"Annuelles!E112","v":0},0,""]
["Sauge Embers wish corail",3.1,{"$f":"Annuelles!E113","v":0},0,""]
["Scaevola deep violet blue ",2.5,{"$f":"Annuelles!E114","v":0},0,""]
["Scaevola Saligna (bleu)",2.5,{"$f":"Annuelles!E115","v":0},0,""]
["Sutera (blanc)",1.6,{"$f":"Annuelles!E116","v":0},0,""]
["Sutera (rose)",1.6,{"$f":"Annuelles!E117","v":0},0,""]
["Sutera Grandiflora (blanc)",1.6,{"$f":"Annuelles!E118","v":0},0,""]
["Sutera Grandiflora Scopia (double blanc)",1.6,{"$f":"Annuelles!E119","v":0},0,""]
["Thumbergia rose sensation (rose)",2.5,{"$f":"Annuelles!E120","v":0},0,""]
["Thunbergia (Oeil de Suzanne) jaune",2.5,{"$f":"Annuelles!E121","v":0},0,""]
["Thunbergia (Oeil de Suzanne) orange",2.5,{"$f":"Annuelles!E122","v":0},0,""]
["Verveine (blanc)",2.5,{"$f":"Annuelles!E123","v":0},0,""]
["Verveine (magenta)",2.5,{"$f":"Annuelles!E124","v":0},0,""]
["Verveine (orange)",2.5,{"$f":"Annuelles!E125","v":0},0,""]
["Verveine (rouge)",2.5,{"$f":"Annuelles!E126","v":0},0,""]
["Verveine (violet)",2.5,{"$f":"Annuelles!E127","v":0},0,""]
["Verveine endurascape pink bicolore",1.6,{"$f":"Annuelles!E128","v":0},0,""]
["Verveine hurricane purple blue",2.5,{"$f":"Annuelles!E129","v":0},0,""]
["Verveine merlot star (pourpre)",2.5,{"$f":"Annuelles!E130","v":0},0,""]
["Verveine peach (pêche)",2.5,{"$f":"Annuelles!E131","v":0},0,""]
["Verveine voodoo star (rouge et blanc)",2.5,{"$f":"Annuelles!E132","v":0},0,""]
[null,null,null,null,""]
[null,null,null,null,""]
["Géraniums",null,null,null,1]
["Géranium Balcon Desrumeaux rose",11,{"$f":"Géranium!E13","v":0},{"$f":"B203*C203","v":0},""]
["Géranium Balcon impérial rouge",11,{"$f":"Géranium!E14","v":0},{"$f":"B204*C204","v":0},""]
["Géranium Balcon rouge",11,{"$f":"Géranium!E15","v":0},0,""]
["Géranium Balcon ville de Dresden",11,{"$f":"Géranium!E16","v":0},0,""]
["Géranium Balcon Ville de Laval rose",11,{"$f":"Géranium!E17","v":0},0,""]
["Géranium Lierre double Blanche roche MD blanc",1.6,{"$f":"Géranium!E18","v":0},0,""]
["Géranium Lierre double Doblino MD framboise",1.6,{"$f":"Géranium!E19","v":0},0,""]
["Géranium Lierre double Doblino MD rose foncé",1.6,{"$f":"Géranium!E20","v":0},0,""]
["Géranium Lierre double Doblino MD rouge",1.6,{"$f":"Géranium!E21","v":0},0,""]
["Géranium Lierre double Doblino MD rouge foncé",1.6,{"$f":"Géranium!E22","v":0},0,""]
["Géranium Lierre double Kate rouge",1.6,{"$f":"Géranium!E23","v":0},0,{"$f":"IF(C213=0,\"\",1)","v":""}]
["Géranium Lierre double Lilac",1.6,{"$f":"Géranium!E24","v":0},0,""]
["Géranium Lierre double Mexicanerin rose blanc",1.6,{"$f":"Géranium!E25","v":0},0,""]
["Géranium Lierre double Ruby rouge",1.6,{"$f":"Géranium!E26","v":0},0,""]
["Géranium Lierre double Vicky rose",1.6,{"$f":"Géranium!E27","v":0},0,""]
["Géranium Lierre simple happy face blanc",1.6,{"$f":"Géranium!E28","v":0},0,""]
["Géranium Lierre simple happy face dark red",1.6,{"$f":"Géranium!E29","v":0},0,""]
["Géranium Lierre simple happy face magenta",1.6,{"$f":"Géranium!E30","v":0},0,""]
["Géranium Lierre simple happy face purple",1.6,{"$f":"Géranium!E31","v":0},0,""]
["Géranium Lierre simple happy face red",1.6,{"$f":"Géranium!E32","v":0},0,""]
["Géranium Lierre simple pellino MD rose foncé",1.6,{"$f":"Géranium!E33","v":0},0,""]
["Géranium Lierre simple pellino MD rouge",1.6,{"$f":"Géranium!E34","v":0},0,""]
["Géranium Zonal Alice violet",1.6,{"$f":"Géranium!E35","v":0},0,""]
["Géranium Zonal Cassiopea rouge carmin",1.6,{"$f":"Géranium!E36","v":0},0,""]
["Géranium Zonal Chocolate abricot",1.6,{"$f":"Géranium!E37","v":0},0,""]
["Géranium Zonal Chocolate cherry red corail",1.6,{"$f":"Géranium!E38","v":0},0,""]
["Géranium Zonal Chocolate pink",1.6,{"$f":"Géranium!E39","v":0},0,""]
["Géranium Zonal Dazzling pink rose",1.6,{"$f":"Géranium!E40","v":0},0,""]
["Géranium Zonal Dijon rouge",1.6,{"$f":"Géranium!E41","v":0},0,""]
["Géranium Zonal Distinction rouge",1.6,{"$f":"Géranium!E42","v":0},0,""]
["Géranium Zonal Flower fairy berry violet",1.6,{"$f":"Géranium!E43","v":0},0,""]
["Géranium Zonal Flower fairy rose",1.6,{"$f":"Géranium!E44","v":0},0,""]
["Géranium Zonal Glacis blanc",1.6,{"$f":"Géranium!E45","v":0},0,""]
["Géranium Zonal Laval fuchia",1.6,{"$f":"Géranium!E46","v":0},0,""]
["Géranium Zonal Libourne rouge",1.6,{"$f":"Géranium!E47","v":0},0,""]
["Géranium Zonal Madame Salleron",1.6,{"$f":"Géranium!E48","v":0},0,""]
["Géranium Zonal Morzine blanc",1.6,{"$f":"Géranium!E49","v":0},0,""]
["Géranium Zonal Mosaïc pink rose",1.6,{"$f":"Géranium!E50","v":0},0,""]
["Géranium Zonal Mosaïc red rouge",1.6,{"$f":"Géranium!E51","v":0},0,""]
["Géranium Zonal Moulins tecmoulins rose",1.6,{"$f":"Géranium!E52","v":0},0,""]
["Géranium Zonal Mrs Pollock",1.6,{"$f":"Géranium!E53","v":0},0,""]
["Géranium Zonal Occold Shield rouge",1.6,{"$f":"Géranium!E54","v":0},0,""]
["Géranium Zonal Odorant (rose ou orange)",2.5,{"$f":"Géranium!E55","v":0},0,""]
["Géranium Zonal Orange",1.6,{"$f":"Géranium!E56","v":0},0,""]
["Géranium Zonal Samelia rouge",1.6,{"$f":"Géranium!E57","v":0},0,""]
["Géranium Zonal Spanish wine burgundy (framboise)",1.6,{"$f":"Géranium!E58","v":0},0,""]
["Géranium Zonal Spanish wine rosé",1.6,{"$f":"Géranium!E59","v":0},0,""]
["Géranium Zonal Steffanie orange",1.6,{"$f":"Géranium!E60","v":0},0,""]
["Géranium Zonal Vancouver centennial orange",1.6,{"$f":"Géranium!E61","v":0},0,""]
["Géranium Zonal Victor rouge",1.6,{"$f":"Géranium!E62","v":0},0,""]
["Géranium Zonal Wilhelm Langguth",1.6,{"$f":"Géranium!E63","v":0},0,""]
["Pelargonium Angeleyes orange",2.5,{"$f":"Géranium!E64","v":0},0,""]
["Pelargonium Angeleyes violet",2.5,{"$f":"Géranium!E65","v":0},0,""]
["Pelargonium Candyflowers violet",3.5,{"$f":"Géranium!E66","v":0},0,""]
["Pelargonium Marcada dark red",1.6,{"$f":"Géranium!E67","v":0},0,""]
["Pelargonium Marcada pink",1.6,{"$f":"Géranium!E68","v":0},0,""]
["Pelargonium Marcada white",1.6,{"$f":"Géranium!E69","v":0},0,""]
["Potager",null,null,null,1]
["Basilic bio",3,{"$f":"Potager!E13","v":0},{"$f":"B261*C261","v":0},""]
["Ciboulette bio ",3,{"$f":"Potager!E14","v":0},{"$f":"B262*C262","v":0},""]
["Citronelle de Madacascar ",3.5,{"$f":"Potager!E15","v":0},0,""]
["Fraisier Charlotte (remontant)",4.5,{"$f":"Potager!E16","v":0},0,""]
["Fraisier Ciflorette (remontant)",4.5,{"$f":"Potager!E17","v":0},0,""]
["Fraisier Cirafine (remontant)",4.5,{"$f":"Potager!E18","v":0},0,""]
["Fraisier Gariguette (non remontant)",4.5,{"$f":"Potager!E19","v":0},0,""]
["Fraisier Gento (remontant)",4.5,{"$f":"Potager!E20","v":0},0,""]
["Menthe Mojito-cocktail bio",3,{"$f":"Potager!E21","v":0},0,""]
["Mertensia maritima ( saveur huitre)",3,{"$f":"Potager!E22","v":0},0,""]
["Patate Douce",4.5999999999999996,{"$f":"Potager!E23","v":0},0,""]
["Persil Géant d'Italie",3,{"$f":"Potager!E24","v":0},0,""]
["Piment",1.2,{"$f":"Potager!E25","v":0},0,""]
["Tomate Ace 55",1.6,{"$f":"Potager!E26","v":0},0,""]
["Tomate Bio Anciennes Calabash Rouge",1.6,{"$f":"Potager!E27","v":0},0,""]
["Tomate Bio Anciennes Précoce de Quimper",1.6,{"$f":"Potager!E28","v":0},0,""]
["Tomate Bio Anciennes Reine des Hâtives",1.6,{"$f":"Potager!E29","v":0},0,{"$f":"IF(C277=0,\"\",1)","v":""}]
["Tomate Bio Anciennes Voyage",1.6,{"$f":"Potager!E30","v":0},0,""]
["Tomate Black From Tula",1.6,{"$f":"Potager!E31","v":0},0,""]
["Tomate Borgo",1.6,{"$f":"Potager!E32","v":0},0,""]
["Tomate Cerise Bio Cocktail Cookie",1.6,{"$f":"Potager!E33","v":0},0,""]
["Tomate Cerise Bio Gusta mini Red",1.2,{"$f":"Potager!E34","v":0},0,""]
["Tomate cerise clémentine",1.6,{"$f":"Potager!E35","v":0},0,""]
["Tomate Grappe Bio Bolstar Ganda",1.6,{"$f":"Potager!E36","v":0},0,""]
["Tomate Grappe Bio Maestria F1",1,{"$f":"Potager!E37","v":0},0,""]
["Tomate Grappe Bio Prévia F1",1.2,{"$f":"Potager!E38","v":0},0,""]
["Tomate Green Zebra ",1.6,{"$f":"Potager!E39","v":0},0,""]
["Tomate muguet",1.6,{"$f":"Potager!E40","v":0},0,""]
["Tomate noire russe charbonneuse",1.6,{"$f":"Potager!E41","v":0},0,""]
["Tomate Roma ",1.6,{"$f":"Potager!E42","v":0},0,""]
[null,null,null,null,""]
[null,null,null,null,""]
["Divers",null,null,null,1]
["Contenant suspension diam 27cm Figue",3.5,{"$f":"Divers!E13","v":0},{"$f":"B294*C294","v":0},""]
["Contenant suspension diam 27cm Gris",3.5,{"$f":"Divers!E14","v":0},{"$f":"B295*C295","v":0},""]
["Contenant suspension diam 27cm Rouge",3.5,{"$f":"Divers!E15","v":0},0,""]
["Contenant suspension diam 27cm Vert",3.5,{"$f":"Divers!E16","v":0},0,""]
["Engrais \"Pro Bio Terre\" 1kg",8.9,{"$f":"Divers!E17","v":0},0,""]
["Jardinière avec soucoupe L50cm Gris",6.5,{"$f":"Divers!E18","v":0},0,""]
["Jardinière avec soucoupe L50cm Taupe",6.5,{"$f":"Divers!E19","v":0},0,""]
["Suspension fleurie Diam 27cm",14.5,{"$f":"Divers!E20","v":0},0,""]
["Total commande",null,null,{"$f":"SUM(D16:D78)+SUM(D80:D201)+SUM(D203:D259)+SUM(D261:D292)+SUM(D294:D301)","v":0},1]